[Event "*** Titled Tuesday 3|2 Blitz"]
[Site "Chess.com"]
[Date "2016.08.02"]
[Round "4"]
[White "Carolina-moon"]
[Black "Alliswell998"]
[Result "0-1"]
[WhiteElo "2032"]
[BlackElo "2205"]
[TimeControl "180+2"]
[EndTime "11:50:07 PDT"]
[Termination "Alliswell998 won on time"]

1. e4 {[%clk 0:03:01.9]} 1... c5 {[%clk 0:03:00.8]} 2. Nc3 {[%clk 0:03:01.7]}
2... a6 {[%clk 0:02:59.8]} 3. g3 {[%clk 0:03:02.1]} 3... b5 {[%clk 0:03:00.2]}
4. Bg2 {[%clk 0:03:03.6]} 4... Bb7 {[%clk 0:03:01.2]} 5. d3 {[%clk 0:03:05]}
5... g6 {[%clk 0:02:58.1]} 6. Nh3 {[%clk 0:03:03.1]} 6... Bg7 {[%clk 0:02:59]}
7. O-O {[%clk 0:03:03.9]} 7... e6 {[%clk 0:03:00]} 8. f4 {[%clk 0:03:04.5]} 8...
Ne7 {[%clk 0:03:01.2]} 9. Be3 {[%clk 0:02:59.3]} 9... d6 {[%clk 0:03:01]} 10.
Qd2 {[%clk 0:02:58]} 10... Nbc6 {[%clk 0:03:00.5]} 11. Rae1 {[%clk 0:02:57.9]}
11... O-O {[%clk 0:02:59.3]} 12. g4 {[%clk 0:02:56]} 12... Nd4 {[%clk
0:02:59.1]} 13. f5 {[%clk 0:02:54.8]} 13... Nec6 {[%clk 0:02:49.8]} 14. Bg5
{[%clk 0:02:46.1]} 14... f6 {[%clk 0:02:44.6]} 15. Bh6 {[%clk 0:02:46.1]} 15...
e5 {[%clk 0:02:26.7]} 16. Bxg7 {[%clk 0:02:44.4]} 16... Kxg7 {[%clk 0:02:27]}
17. Nd5 {[%clk 0:02:35.7]} 17... Ne7 {[%clk 0:02:09.7]} 18. g5 {[%clk
0:02:03.4]} 18... Bxd5 {[%clk 0:01:57.1]} 19. exd5 {[%clk 0:01:57.5]} 19...
Ndxf5 {[%clk 0:01:53.5]} 20. gxf6+ {[%clk 0:01:57.8]} 20... Rxf6 {[%clk
0:01:53.3]} 21. Ng5 {[%clk 0:01:57.6]} 21... Kg8 {[%clk 0:01:36.9]} 22. Ne4
{[%clk 0:01:44.7]} 22... Rf8 {[%clk 0:01:34.5]} 23. c4 {[%clk 0:01:38.8]} 23...
bxc4 {[%clk 0:01:30.4]} 24. dxc4 {[%clk 0:01:39.5]} 24... h6 {[%clk 0:01:19.2]}
25. b3 {[%clk 0:01:37.4]} 25... Qd7 {[%clk 0:01:18.4]} 26. Bh3 {[%clk 0:01:33]}
26... Kg7 {[%clk 0:01:17.7]} 27. Kh1 {[%clk 0:01:33.9]} 27... Rf7 {[%clk
0:01:15.6]} 28. Rg1 {[%clk 0:01:34.2]} 28... Rg8 {[%clk 0:01:10.6]} 29. Qg2
{[%clk 0:01:27.9]} 29... Kh7 {[%clk 0:01:07.6]} 30. Ref1 {[%clk 0:01:26.7]}
30... Rgg7 {[%clk 0:01:03.9]} 31. Qg4 {[%clk 0:01:21.6]} 31... Qd8 {[%clk
0:00:58.5]} 32. Qg2 {[%clk 0:01:16.1]} 32... Ne3 {[%clk 0:00:57.8]} 33. Rxf7
{[%clk 0:00:27.6]} 33... Nxg2 {[%clk 0:00:46.4]} 34. Rxg7+ {[%clk 0:00:14.3]}
34... Kxg7 {[%clk 0:00:47.3]} 35. Rxg2 {[%clk 0:00:13.4]} 35... Qa5 {[%clk
0:00:36.7]} 36. Nxd6 {[%clk 0:00:09.3]} 36... Qe1+ {[%clk 0:00:36.7]} 37. Rg1
{[%clk 0:00:10.6]} 37... Qe3 {[%clk 0:00:34.7]} 38. Be6 {[%clk 0:00:06]} 38...
Qf3+ {[%clk 0:00:34.6]} 39. Rg2 {[%clk 0:00:07.3]} 39... e4 {[%clk 0:00:33.2]}
40. Kg1 {[%clk 0:00:05.3]} 40... e3 {[%clk 0:00:32.3]} 41. Bg4 {[%clk
0:00:03.1]} 41... e2 {[%clk 0:00:27.5]} 0-1

[Event "*** Titled Tuesday 3|2 Blitz"]
[Site "Chess.com"]
[Date "2016.08.02"]
[Round "4"]
[White "ftorodent"]
[Black "Sanan_Sjugirov"]
[Result "1-0"]
[WhiteElo "2466"]
[BlackElo "2666"]
[TimeControl "180+2"]
[EndTime "11:50:26 PDT"]
[Termination "ftorodent won by resignation"]

1. d4 {[%clk 0:03:01.8]} 1... Nf6 {[%clk 0:03:01.1]} 2. c4 {[%clk 0:03:02.2]}
2... g6 {[%clk 0:02:57.9]} 3. Nc3 {[%clk 0:03:02.5]} 3... d5 {[%clk 0:02:58.8]}
4. cxd5 {[%clk 0:03:01.3]} 4... Nxd5 {[%clk 0:02:59.7]} 5. e4 {[%clk 0:02:42]}
5... Nxc3 {[%clk 0:03:00.6]} 6. bxc3 {[%clk 0:02:42.9]} 6... Bg7 {[%clk
0:03:02.2]} 7. Be3 {[%clk 0:02:30.2]} 7... c5 {[%clk 0:03:01.6]} 8. Nf3 {[%clk
0:02:30.7]} 8... Qa5 {[%clk 0:02:51]} 9. Nd2 {[%clk 0:02:30.7]} 9... Qc7 {[%clk
0:02:28.6]} 10. Rc1 {[%clk 0:02:26.5]} 10... O-O {[%clk 0:02:26.8]} 11. Be2
{[%clk 0:02:18.2]} 11... Nd7 {[%clk 0:02:24.8]} 12. O-O {[%clk 0:02:16.5]} 12...
e5 {[%clk 0:02:21.9]} 13. d5 {[%clk 0:02:15.3]} 13... b6 {[%clk 0:02:18.3]} 14.
a4 {[%clk 0:02:10.5]} 14... Bb7 {[%clk 0:02:05.3]} 15. a5 {[%clk 0:02:08.2]}
15... Nf6 {[%clk 0:01:52.6]} 16. Rb1 {[%clk 0:02:03.7]} 16... Rab8 {[%clk
0:01:42.1]} 17. Qc2 {[%clk 0:01:59.5]} 17... Ne8 {[%clk 0:01:38.7]} 18. axb6
{[%clk 0:01:35.9]} 18... axb6 {[%clk 0:01:40.6]} 19. Rb2 {[%clk 0:01:33.3]}
19... Nd6 {[%clk 0:01:40.3]} 20. Rfb1 {[%clk 0:01:33.8]} 20... Bc8 {[%clk
0:01:38]} 21. Nc4 {[%clk 0:01:34.6]} 21... Nxc4 {[%clk 0:01:35.5]} 22. Bxc4
{[%clk 0:01:32.2]} 22... Bd7 {[%clk 0:01:36.6]} 23. Bb5 {[%clk 0:01:27.2]} 23...
Bxb5 {[%clk 0:01:12.8]} 24. Rxb5 {[%clk 0:01:27.3]} 24... Rfc8 {[%clk
0:00:38.9]} 25. c4 {[%clk 0:01:20.8]} 25... Bf6 {[%clk 0:00:33.5]} 26. Qb3
{[%clk 0:01:16.1]} 26... Bd8 {[%clk 0:00:34.6]} 27. Bxc5 {[%clk 0:01:15.8]}
27... Kg7 {[%clk 0:00:24.7]} 28. Qb2 {[%clk 0:01:05.1]} 28... Ra8 {[%clk
0:00:17.2]} 29. Bxb6 {[%clk 0:01:01.3]} 29... Qxc4 {[%clk 0:00:18.2]} 30. Bxd8
{[%clk 0:01:00.7]} 30... Rxd8 {[%clk 0:00:18.4]} 31. Qxe5+ {[%clk 0:01:01.5]}
31... Kg8 {[%clk 0:00:20]} 32. Rb7 {[%clk 0:00:56.9]} 32... Rf8 {[%clk
0:00:18.1]} 33. h4 {[%clk 0:00:56.5]} 33... Rae8 {[%clk 0:00:17.4]} 34. Re7
{[%clk 0:00:57]} 34... Rxe7 {[%clk 0:00:17.9]} 35. Qxe7 {[%clk 0:00:57.6]} 35...
Qc2 {[%clk 0:00:19]} 36. Re1 {[%clk 0:00:50]} 36... Qd2 {[%clk 0:00:19.9]} 37.
Re3 {[%clk 0:00:48.2]} 37... Qd1+ {[%clk 0:00:21.2]} 38. Kh2 {[%clk 0:00:47.8]}
38... Qd4 {[%clk 0:00:22.4]} 39. Rf3 {[%clk 0:00:46.7]} 39... Qc4 {[%clk
0:00:18]} 40. d6 {[%clk 0:00:44]} 40... Qc5 {[%clk 0:00:18.9]} 41. e5 {[%clk
0:00:43.2]} 1-0

[Event "*** Titled Tuesday 3|2 Blitz"]
[Site "Chess.com"]
[Date "2016.08.02"]
[Round "4"]
[White "platy3"]
[Black "chipmunknau"]
[Result "1-0"]
[WhiteElo "2691"]
[BlackElo "2434"]
[TimeControl "180+2"]
[EndTime "11:50:28 PDT"]
[Termination "platy3 won by resignation"]

1. e4 {[%clk 0:03:01.9]} 1... c6 {[%clk 0:03:00.9]} 2. Nf3 {[%clk 0:02:51.6]}
2... d5 {[%clk 0:03:01.7]} 3. Nc3 {[%clk 0:02:51.2]} 3... Bg4 {[%clk 0:03:01.9]}
4. h3 {[%clk 0:02:48.4]} 4... Bxf3 {[%clk 0:03:02.5]} 5. Qxf3 {[%clk 0:02:49.6]}
5... e6 {[%clk 0:03:04.4]} 6. d3 {[%clk 0:02:49.2]} 6... Nf6 {[%clk 0:03:04]} 7.
Bd2 {[%clk 0:02:50]} 7... Bb4 {[%clk 0:03:04.1]} 8. a3 {[%clk 0:02:50.4]} 8...
Ba5 {[%clk 0:02:55.9]} 9. O-O-O {[%clk 0:02:51.4]} 9... b5 {[%clk 0:02:48]} 10.
Qg3 {[%clk 0:02:45.2]} 10... O-O {[%clk 0:02:34.6]} 11. Bg5 {[%clk 0:02:35.4]}
11... Bxc3 {[%clk 0:01:33.9]} 12. bxc3 {[%clk 0:02:27.1]} 12... Nh5 {[%clk
0:01:32.7]} 13. Qg4 {[%clk 0:02:19.1]} 13... Nf6 {[%clk 0:01:15.5]} 14. Qg3
{[%clk 0:01:44.4]} 14... Nh5 {[%clk 0:01:16.2]} 15. Qh4 {[%clk 0:01:45.6]} 15...
f6 {[%clk 0:01:17.2]} 16. Be3 {[%clk 0:01:40.1]} 16... g6 {[%clk 0:01:16.7]} 17.
g4 {[%clk 0:01:40.7]} 17... Ng7 {[%clk 0:01:17.8]} 18. f4 {[%clk 0:01:42.1]}
18... Nd7 {[%clk 0:01:13.1]} 19. f5 {[%clk 0:01:33.2]} 19... exf5 {[%clk
0:01:02.9]} 20. gxf5 {[%clk 0:01:33]} 20... g5 {[%clk 0:00:56.1]} 21. Qg3 {[%clk
0:01:32.9]} 21... Qa5 {[%clk 0:00:53.2]} 22. Qd6 {[%clk 0:01:25.9]} 22... Rad8
{[%clk 0:00:35.4]} 23. Qb4 {[%clk 0:01:16.5]} 23... Qc7 {[%clk 0:00:36.3]} 24.
h4 {[%clk 0:01:06.6]} 24... a5 {[%clk 0:00:30.3]} 25. Qb3 {[%clk 0:01:05.1]}
25... a4 {[%clk 0:00:29.6]} 26. Qb4 {[%clk 0:01:04.9]} 26... g4 {[%clk
0:00:26.5]} 27. exd5 {[%clk 0:01:00.1]} 27... cxd5 {[%clk 0:00:20.9]} 28. Bg2
{[%clk 0:00:57.7]} 28... Ne5 {[%clk 0:00:19]} 29. Rhf1 {[%clk 0:00:57]} 29...
Kh8 {[%clk 0:00:15.8]} 30. Bf4 {[%clk 0:00:47.4]} 30... Qc6 {[%clk 0:00:14.2]}
31. Kb2 {[%clk 0:00:44]} 31... Rfe8 {[%clk 0:00:14]} 32. Rde1 {[%clk 0:00:41.1]}
32... Rc8 {[%clk 0:00:15.1]} 33. Bxe5 {[%clk 0:00:41]} 33... Rxe5 {[%clk
0:00:15.9]} 34. Rxe5 {[%clk 0:00:42.3]} 34... fxe5 {[%clk 0:00:17.6]} 35. f6
{[%clk 0:00:44.1]} 35... Ne6 {[%clk 0:00:17.3]} 36. f7 {[%clk 0:00:43.9]} 36...
Nf8 {[%clk 0:00:16.9]} 37. h5 {[%clk 0:00:20.3]} 37... Qd7 {[%clk 0:00:15.6]}
38. h6 {[%clk 0:00:16.5]} 38... Qc6 {[%clk 0:00:14.8]} 39. Kb1 {[%clk
0:00:15.8]} 39... Qxh6 {[%clk 0:00:14.9]} 40. Qxg4 {[%clk 0:00:14.6]} 40... Ne6
{[%clk 0:00:10.8]} 41. Bxd5 {[%clk 0:00:15.3]} 1-0

[Event "*** Titled Tuesday 3|2 Blitz"]
[Site "Chess.com"]
[Date "2016.08.02"]
[Round "4"]
[White "ChadaevNikolay"]
[Black "Nadtkins"]
[Result "1-0"]
[WhiteElo "2527"]
[BlackElo "2451"]
[TimeControl "180+2"]
[EndTime "11:50:31 PDT"]
[Termination "ChadaevNikolay won by resignation"]

1. e4 {[%clk 0:02:53.4]} 1... d5 {[%clk 0:03:00.3]} 2. exd5 {[%clk 0:02:54.1]}
2... Qxd5 {[%clk 0:03:02.2]} 3. Nc3 {[%clk 0:02:55.3]} 3... Qa5 {[%clk
0:03:03.8]} 4. d4 {[%clk 0:02:56]} 4... c6 {[%clk 0:03:02.9]} 5. Nf3 {[%clk
0:02:56.9]} 5... Bf5 {[%clk 0:03:03.9]} 6. Bd3 {[%clk 0:02:53.6]} 6... e6 {[%clk
0:03:03]} 7. O-O {[%clk 0:02:52]} 7... Nf6 {[%clk 0:03:04.3]} 8. Bxf5 {[%clk
0:02:44.4]} 8... Qxf5 {[%clk 0:03:04.6]} 9. Ne5 {[%clk 0:02:45.2]} 9... h5
{[%clk 0:02:54.6]} 10. Re1 {[%clk 0:02:37.6]} 10... Nbd7 {[%clk 0:02:46.9]} 11.
h3 {[%clk 0:02:34]} 11... Bb4 {[%clk 0:02:42.3]} 12. Bd2 {[%clk 0:02:08.5]}
12... Bxc3 {[%clk 0:02:40.5]} 13. Bxc3 {[%clk 0:02:09.2]} 13... Rd8 {[%clk
0:02:40.5]} 14. Nxd7 {[%clk 0:01:58.8]} 14... Rxd7 {[%clk 0:02:39.8]} 15. Re5
{[%clk 0:01:58.9]} 15... Qg6 {[%clk 0:02:40.4]} 16. Qe2 {[%clk 0:01:49.9]} 16...
O-O {[%clk 0:02:35.6]} 17. Re1 {[%clk 0:01:35.8]} 17... Rfd8 {[%clk 0:02:34.3]}
18. b3 {[%clk 0:01:26.3]} 18... Rd5 {[%clk 0:02:27.9]} 19. Bb2 {[%clk
0:00:49.7]} 19... Rxe5 {[%clk 0:02:04.8]} 20. dxe5 {[%clk 0:00:50.5]} 20... Nd5
{[%clk 0:02:06.4]} 21. Rd1 {[%clk 0:00:52.1]} 21... Kh7 {[%clk 0:01:59.8]} 22.
Rd4 {[%clk 0:00:46.1]} 22... Rd7 {[%clk 0:01:46]} 23. Rh4 {[%clk 0:00:39.7]}
23... Kg8 {[%clk 0:01:42.4]} 24. a3 {[%clk 0:00:35.3]} 24... b5 {[%clk
0:01:39.7]} 25. Rd4 {[%clk 0:00:32.2]} 25... Qg5 {[%clk 0:01:28.3]} 26. g3
{[%clk 0:00:27.4]} 26... Nb6 {[%clk 0:01:17.2]} 27. Kg2 {[%clk 0:00:17.6]} 27...
Rd5 {[%clk 0:01:15.3]} 28. Rxd5 {[%clk 0:00:16.8]} 28... Nxd5 {[%clk 0:01:13.5]}
29. Kh2 {[%clk 0:00:14.4]} 29... h4 {[%clk 0:01:14.1]} 30. c4 {[%clk 0:00:14.9]}
30... hxg3+ {[%clk 0:01:08.7]} 31. fxg3 {[%clk 0:00:15.7]} 31... bxc4 {[%clk
0:01:10.6]} 32. bxc4 {[%clk 0:00:16.9]} 32... Ne7 {[%clk 0:01:07.6]} 33. Bd4
{[%clk 0:00:17.1]} 33... Nf5 {[%clk 0:01:07]} 34. Bf2 {[%clk 0:00:17.8]} 34...
a5 {[%clk 0:01:04.3]} 35. a4 {[%clk 0:00:18.6]} 35... Qc1 {[%clk 0:01:04.1]} 36.
g4 {[%clk 0:00:19.5]} 36... Qf4+ {[%clk 0:01:02.1]} 37. Kg2 {[%clk 0:00:20]}
37... Nd4 {[%clk 0:00:58.8]} 38. Qe3 {[%clk 0:00:21.2]} 38... Qxe3 {[%clk
0:00:40.4]} 39. Bxe3 {[%clk 0:00:22.8]} 39... Nb3 {[%clk 0:00:42.2]} 40. Kf3
{[%clk 0:00:23.7]} 40... f6 {[%clk 0:00:41]} 41. Ke4 {[%clk 0:00:22.5]} 41...
Kf7 {[%clk 0:00:41.9]} 42. exf6 {[%clk 0:00:21.3]} 42... gxf6 {[%clk 0:00:42.6]}
43. Kd3 {[%clk 0:00:22.7]} 43... f5 {[%clk 0:00:35.7]} 44. gxf5 {[%clk
0:00:22.6]} 44... exf5 {[%clk 0:00:36.8]} 45. Kc3 {[%clk 0:00:23.3]} 45... f4
{[%clk 0:00:38.1]} 46. Bf2 {[%clk 0:00:19.6]} 46... Nc1 {[%clk 0:00:38.8]} 47.
Kd2 {[%clk 0:00:18.9]} 47... Nb3+ {[%clk 0:00:39.5]} 48. Kc2 {[%clk 0:00:19.5]}
1-0

[Event "*** Titled Tuesday 3|2 Blitz"]
[Site "Chess.com"]
[Date "2016.08.02"]
[Round "4"]
[White "Proteuo"]
[Black "Makalexa"]
[Result "0-1"]
[WhiteElo "2300"]
[BlackElo "2147"]
[TimeControl "180+2"]
[EndTime "11:51:02 PDT"]
[Termination "Makalexa won by resignation"]

1. e4 {[%clk 0:03:01.9]} 1... e5 {[%clk 0:02:58]} 2. Nf3 {[%clk 0:03:02.5]} 2...
Nc6 {[%clk 0:02:58.9]} 3. Bb5 {[%clk 0:03:03.3]} 3... Nd4 {[%clk 0:02:53.2]} 4.
Nxd4 {[%clk 0:02:46.4]} 4... exd4 {[%clk 0:02:55.1]} 5. Be2 {[%clk 0:02:48]}
5... Qh4 {[%clk 0:02:51.8]} 6. d3 {[%clk 0:02:47.2]} 6... Bc5 {[%clk 0:02:49.9]}
7. Nd2 {[%clk 0:02:48.1]} 7... d6 {[%clk 0:02:47.8]} 8. Nf3 {[%clk 0:02:48.6]}
8... Qf6 {[%clk 0:02:48]} 9. Bg5 {[%clk 0:02:48.1]} 9... Qg6 {[%clk 0:02:49.3]}
10. O-O {[%clk 0:02:45.9]} 10... Nf6 {[%clk 0:02:41.5]} 11. Qd2 {[%clk
0:02:44.7]} 11... h6 {[%clk 0:02:39.2]} 12. Bf4 {[%clk 0:02:42.8]} 12... Bg4
{[%clk 0:02:31.7]} 13. Kh1 {[%clk 0:02:38.9]} 13... Qh5 {[%clk 0:02:27]} 14. h3
{[%clk 0:02:34.5]} 14... O-O-O {[%clk 0:02:08.5]} 15. Kg1 {[%clk 0:02:28.1]}
15... Bxf3 {[%clk 0:02:03.2]} 16. Bxf3 {[%clk 0:02:28.9]} 16... Qh4 {[%clk
0:01:58.3]} 17. Kh2 {[%clk 0:02:06]} 17... Nd7 {[%clk 0:01:41.1]} 18. Bg3 {[%clk
0:01:57.5]} 18... Qg5 {[%clk 0:01:36.2]} 19. Bf4 {[%clk 0:01:57.8]} 19... Qf6
{[%clk 0:01:35.5]} 20. Bg3 {[%clk 0:01:57.8]} 20... Ne5 {[%clk 0:01:34.9]} 21.
Bd1 {[%clk 0:01:57.1]} 21... g5 {[%clk 0:01:29.2]} 22. b4 {[%clk 0:01:56]} 22...
Bb6 {[%clk 0:01:27.3]} 23. a4 {[%clk 0:01:57]} 23... c6 {[%clk 0:01:28]} 24. f4
{[%clk 0:01:56.8]} 24... gxf4 {[%clk 0:01:26.4]} 25. Rxf4 {[%clk 0:01:57.7]}
25... Qg6 {[%clk 0:01:17.1]} 26. Qf2 {[%clk 0:01:56]} 26... Bc7 {[%clk
0:01:17.3]} 27. Rf6 {[%clk 0:01:56]} 27... Qg5 {[%clk 0:01:11.5]} 28. Rf5 {[%clk
0:01:47.2]} 28... Qg6 {[%clk 0:01:04.1]} 29. Bh5 {[%clk 0:01:45.9]} 29... Qe6
{[%clk 0:00:59.2]} 30. Bxe5 {[%clk 0:01:45.7]} 30... dxe5 {[%clk 0:01:01.1]} 31.
Bg4 {[%clk 0:01:43.1]} 31... Qe8 {[%clk 0:00:53.3]} 32. Rxe5+ {[%clk 0:01:42.1]}
32... Kb8 {[%clk 0:00:53.7]} 33. Kh1 {[%clk 0:01:33.8]} 33... Qxe5 {[%clk
0:00:49.6]} 34. Qg1 {[%clk 0:01:33.9]} 34... h5 {[%clk 0:00:49]} 35. Bf5 {[%clk
0:01:33.9]} 35... Rhg8 {[%clk 0:00:49.8]} 36. Rf1 {[%clk 0:01:33.2]} 36... Rg3
{[%clk 0:00:50.3]} 37. Rf2 {[%clk 0:01:30.7]} 37... Rdg8 {[%clk 0:00:50.8]} 38.
a5 {[%clk 0:01:27.5]} 38... Rf3 {[%clk 0:00:44.9]} 39. Rxf3 {[%clk 0:01:25.9]}
39... Qb5 {[%clk 0:00:43.8]} 40. Qe1 {[%clk 0:01:22.1]} 40... h4 {[%clk
0:00:42.5]} 41. Bg4 {[%clk 0:01:22.4]} 41... Bg3 {[%clk 0:00:40.8]} 42. Qd2
{[%clk 0:01:21.7]} 42... a6 {[%clk 0:00:41.2]} 43. Rxf7 {[%clk 0:01:21.5]} 43...
Ka7 {[%clk 0:00:41.1]} 44. Rf1 {[%clk 0:01:22]} 44... Rg5 {[%clk 0:00:36]} 45.
Rf5 {[%clk 0:01:19]} 45... Rxf5 {[%clk 0:00:36.5]} 46. exf5 {[%clk 0:01:19.5]}
46... Bd6 {[%clk 0:00:34.9]} 47. f6 {[%clk 0:01:11.4]} 47... Qe5 {[%clk
0:00:34.1]} 48. g3 {[%clk 0:01:07.6]} 48... Qxf6 {[%clk 0:00:25.3]} 49. Kg2
{[%clk 0:00:59.1]} 49... Bxg3 {[%clk 0:00:22.2]} 50. Qe2 {[%clk 0:00:58.2]}
50... Qd6 {[%clk 0:00:22.2]} 51. c3 {[%clk 0:00:53.7]} 51... dxc3 {[%clk
0:00:20.2]} 52. Qe3+ {[%clk 0:00:54.8]} 52... Kb8 {[%clk 0:00:21.1]} 53. Qe8+
{[%clk 0:00:54.6]} 53... Ka7 {[%clk 0:00:22.4]} 54. Qe3+ {[%clk 0:00:55.3]}
54... Ka8 {[%clk 0:00:23.9]} 55. Qe8+ {[%clk 0:00:55.3]} 55... Qb8 {[%clk
0:00:25.2]} 56. Qxb8+ {[%clk 0:00:52]} 56... Kxb8 {[%clk 0:00:17]} 57. d4 {[%clk
0:00:52.8]} 57... c2 {[%clk 0:00:12.4]} 0-1

[Event "*** Titled Tuesday 3|2 Blitz"]
[Site "Chess.com"]
[Date "2016.08.02"]
[Round "4"]
[White "stepanosinovsky"]
[Black "Hieronymus00"]
[Result "0-1"]
[WhiteElo "2194"]
[BlackElo "2138"]
[TimeControl "180+2"]
[EndTime "11:51:14 PDT"]
[Termination "Hieronymus00 won by resignation"]

1. e4 {[%clk 0:03:01.9]} 1... e5 {[%clk 0:03:00.5]} 2. Nf3 {[%clk 0:03:02.3]}
2... Nc6 {[%clk 0:03:00.7]} 3. Bb5 {[%clk 0:03:02.4]} 3... a6 {[%clk 0:03:01.1]}
4. Ba4 {[%clk 0:03:02.7]} 4... Nf6 {[%clk 0:02:59.5]} 5. O-O {[%clk 0:03:02.6]}
5... Bc5 {[%clk 0:02:57.8]} 6. Nxe5 {[%clk 0:02:53.3]} 6... Nxe5 {[%clk
0:02:46.5]} 7. d4 {[%clk 0:02:53.6]} 7... b5 {[%clk 0:02:44.6]} 8. dxe5 {[%clk
0:02:13.2]} 8... Nxe4 {[%clk 0:02:28.8]} 9. Bb3 {[%clk 0:02:04.6]} 9... Bb7
{[%clk 0:02:20.7]} 10. Qg4 {[%clk 0:01:29.5]} 10... O-O {[%clk 0:02:12.6]} 11.
Bh6 {[%clk 0:01:24.6]} 11... g6 {[%clk 0:02:06.1]} 12. Nc3 {[%clk 0:01:10.2]}
12... Nxc3 {[%clk 0:01:40.6]} 13. Bxf8 {[%clk 0:00:53.3]} 13... Qxf8 {[%clk
0:01:27.8]} 14. bxc3 {[%clk 0:00:53.4]} 14... Qe7 {[%clk 0:01:29]} 15. Rad1
{[%clk 0:00:32.2]} 15... Qxe5 {[%clk 0:01:11.8]} 16. Rxd7 {[%clk 0:00:28]} 16...
Rf8 {[%clk 0:01:12.1]} 17. Rfd1 {[%clk 0:00:15.9]} 17... Bc8 {[%clk 0:00:53.6]}
18. Rxf7 {[%clk 0:00:10.9]} 18... Bxg4 {[%clk 0:00:46]} 19. Rf5+ {[%clk
0:00:10.5]} 19... Kg7 {[%clk 0:00:39.1]} 20. Rxe5 {[%clk 0:00:05.2]} 20... Bxf2+
{[%clk 0:00:38.3]} 21. Kh1 {[%clk 0:00:03.8]} 21... Bxd1 {[%clk 0:00:39]} 22.
Re7+ {[%clk 0:00:03.8]} 22... Kh6 {[%clk 0:00:39.7]} 23. Rxc7 {[%clk 0:00:03]}
23... Bg3 {[%clk 0:00:27.4]} 24. hxg3 {[%clk 0:00:03]} 24... Rf2 {[%clk
0:00:21.6]} 25. Kh2 {[%clk 0:00:02.7]} 25... Bxc2 {[%clk 0:00:22.4]} 26. Rc6
{[%clk 0:00:02.1]} 26... Be4 {[%clk 0:00:21.3]} 27. Rxa6 {[%clk 0:00:02.8]}
27... Rxg2+ {[%clk 0:00:22.2]} 28. Kh3 {[%clk 0:00:03.8]} 28... Rd2 {[%clk
0:00:22.1]} 29. Re6 {[%clk 0:00:04.2]} 29... Bf5+ {[%clk 0:00:22.8]} 30. g4
{[%clk 0:00:05.1]} 30... Bxe6 {[%clk 0:00:23.6]} 31. Bxe6 {[%clk 0:00:07]} 31...
Rd3+ {[%clk 0:00:24.7]} 32. Kh4 {[%clk 0:00:07.2]} 32... Rxc3 {[%clk 0:00:25.7]}
33. g5+ {[%clk 0:00:08.1]} 33... Kg7 {[%clk 0:00:26.8]} 34. Kg4 {[%clk
0:00:08.6]} 34... h5+ {[%clk 0:00:23.3]} 35. gxh6+ {[%clk 0:00:08.8]} 35... Kxh6
{[%clk 0:00:24.5]} 36. Kf4 {[%clk 0:00:10.2]} 36... Kh5 {[%clk 0:00:24]} 37. Bf7
{[%clk 0:00:08.8]} 37... Rc1 {[%clk 0:00:20.5]} 38. Ke3 {[%clk 0:00:08.6]} 38...
Re1+ {[%clk 0:00:20.4]} 39. Kd4 {[%clk 0:00:09.2]} 39... Rf1 {[%clk 0:00:18.4]}
40. Be8 {[%clk 0:00:08.9]} 40... b4 {[%clk 0:00:18.4]} 41. Kc5 {[%clk
0:00:08.3]} 41... Rf4 {[%clk 0:00:19.3]} 42. Bb5 {[%clk 0:00:07.8]} 42... g5
{[%clk 0:00:18.2]} 43. Bc4 {[%clk 0:00:08.1]} 43... Kh4 {[%clk 0:00:16.2]} 44.
Kxb4 {[%clk 0:00:09]} 44... g4 {[%clk 0:00:17.2]} 45. a4 {[%clk 0:00:08.7]}
45... g3 {[%clk 0:00:17.1]} 46. a5 {[%clk 0:00:09.2]} 46... g2 {[%clk 0:00:17]}
47. Kb5 {[%clk 0:00:09.8]} 47... Rxc4 {[%clk 0:00:16.6]} 48. Kxc4 {[%clk
0:00:09.6]} 48... g1=Q {[%clk 0:00:17.3]} 49. Kb5 {[%clk 0:00:10.1]} 49... Qa7
{[%clk 0:00:18.1]} 0-1